[Event "40th Eastman Open Ghent"]
[Site "Ghent"]
[Date "2017.07.19"]
[Round "9"]
[White "Sadkowski, Daniel"]
[Black "Van Herck, Marcel"]
[Result "1/2-1/2"]
[ECO "E09"]
[WhiteElo "2243"]
[BlackElo "2156"]
[Annotator "NA"]
[PlyCount "59"]
[EventDate "2017.??.??"]
[EventType "swiss"]
[EventCountry "BEL"]
[SourceTitle "playchess.com"]
[Source "ChessBase"]
[SourceQuality "1"]
[TimeControl "7200"]

{[%evp 14,40,20,11,17,6,15,0,0,0,33,25,28,19,20,22,27,31,13,32767,32767,32767,32767,6,0,0,0,8,10]} 1. d4 {[%emt 0:00:04]} Nf6 {[%emt 0:04:35]} 2. c4 {[%emt 0:00:12]} e6 {[%emt 0:00:12]} 3. g3 {[%emt 0:00:35]} d5 {[%emt 0:01:11]} 4. Nf3 {[%emt 0:00:07]} Be7 {[%emt 0:00:19]} 5. Bg2 {[%emt 0:00:07]} O-O {[%emt 0:00:06]} 6. O-O {[%emt 0:00:04]} c6 {[%emt 0:11:47]} 7. Qc2 {[%emt 0:04:29]} Nbd7 {[%emt 0:00:48]} 8. Nbd2 {[%emt 0:02:15]} b6 {[%emt 0:00:44]} 9. b3 {[%emt 0:00:37]} Bb7 {[%emt 0:00:10]} 10. Bb2 {[%emt 0:00:15]} Rc8 {[%emt 0:04:02]} 11. e4 {[%emt 0:09:54]} dxe4 {[%emt 0:00:40]} 12. Nxe4 {[%emt 0:00:48]} c5 {[%emt 0:09:40]} 13. Nxf6+ {[%emt 0:00:31]} Bxf6 {[%emt 0:10:38]} 14. Ng5 {[%emt 0:24:11]} Bxg5 {[%emt 0:00:15]} 15. Bxb7 {[%emt 0:00:03]} Rc7 {[%emt 0:00:45] LiveBook: 3 Games} 16. Bg2 {[%emt 0:04:14]} cxd4 {[%emt 0:03:49]} 17. Bxd4 {[%emt 0:02:07]} Bf6 {[%emt 0:00:22]} 18. Bxf6 {[%emt 0:06:04]} Qxf6 {[%emt 0:00:06]} 19. Qe2 {[%emt 0:01:06]} Rd8 {[%emt 0:03:38]} 20. Rad1 $11 {[%emt 0:01:07]} Nf8 {[%emt 0:01:25]} 21. Rxd8 {[%emt 0:07:50]} Qxd8 {[%emt 0:00:18]} 22. Rd1 {[%emt 0:00:05]} Rd7 {[%emt 0:00:05]} 23. Rxd7 {[%emt 0:00:22]} Qxd7 {[%emt 0:01:37]} 24. h4 {[%emt 0:01:16]} Qd4 {[%emt 0:06:48]} 25. Bf3 {[%emt 0:04:02]} g6 {[%emt 0:04:03]} 26. Kg2 {[%emt 0:00:42]} h5 {[%emt 0:00:54]} 27. Qd1 {[%emt 0:02:42]} Qb2 28. Qe2 Qd4 29. Qd1 Qc3 30. Qd6 1/2-1/2

[Event "40th Eastman Open Ghent"]
[Site "Ghent"]
[Date "2017.07.19"]
[Round "9"]
[White "Kitze, Alexander"]
[Black "Cordts, Ingo"]
[Result "1-0"]
[ECO "C54"]
[WhiteElo "2177"]
[BlackElo "2259"]
[Annotator "ChessBase"]
[PlyCount "113"]
[EventDate "2017.??.??"]
[EventType "swiss"]
[EventCountry "BEL"]
[SourceTitle "playchess.com"]
[Source "ChessBase"]
[SourceQuality "1"]
[TimeControl "7200"]

1. e4 {[%emt 0:00:03]} e5 {[%emt 0:00:01]} 2. Nf3 {[%emt 0:00:07]} Nc6 {[%emt 0:00:04]} 3. Bc4 {[%emt 0:00:04]} Bc5 {[%emt 0:00:05]} 4. c3 {[%emt 0:01:56]} Nf6 {[%emt 0:00:07]} 5. d3 {[%emt 0:00:04]} a6 {[%emt 0:00:06]} 6. O-O {[%emt 0:00:21]} Ba7 {[%emt 0:02:04]} 7. Re1 {[%emt 0:15:01]} O-O {[%emt 0:00:58]} 8. a4 {[%emt 0:04:58]} d6 {[%emt 0:04:09]} 9. Na3 {[%emt 0:02:04]} Ne7 {[%emt 0:02:21]} 10. Nc2 {[%emt 0:01:19]} c6 {[%emt 0:01:22]} 11. Be3 {[%emt 0:06:50]} Ng6 {[%emt 0:01:02]} 12. Bxa7 {[%emt 0:03:49]} Rxa7 {[%emt 0:00:01]} 13. d4 {[%emt 0:00:23]} exd4 {[%emt 0:03:05]} 14. Qxd4 {[%emt 0:04:38]} c5 {[%emt 0:00:14]} 15. Qd2 {[%emt 0:00:05]} Re8 {[%emt 0:06:29]} 16. e5 {[%emt 0:12:54]} Nxe5 {[%emt 0:06:21]} 17. Nxe5 {[%emt 0:00:17]} dxe5 {[%emt 0:00:20]} 18. Qxd8 {[%emt 0:00:10]} Rxd8 {[%emt 0:00:01]} 19. Rxe5 {[%emt 0:00:02]} b6 {[%emt 0:04:12]} 20. Rae1 {[%emt 0:03:05]} Kf8 {[%emt 0:01:32]} 21. b4 {[%emt 0:20:38]} Rc7 {[%emt 0:10:00]} 22. bxc5 {[%emt 0:00:28]} Rxc5 {[%emt 0:00:46]} 23. Rxc5 {[%emt 0:00:05]} bxc5 {[%emt 0:00:01]} 24. Ne3 {[%emt 0:08:28]} Ne4 {[%emt 0:03:23]} 25. Rd1 {[%emt 0:02:50]} Re8 {[%emt 0:09:28]} 26. Nd5 {[%emt 0:02:40]} Bb7 {[%emt 0:09:02]} 27. Nc7 {[%emt 0:03:08]} Nxc3 {[%emt 0:01:25]} 28. Nxe8 {[%emt 0:00:06]} Nxd1 {[%emt 0:00:19]} 29. Nd6 {[%emt 0:00:03]} Bc6 {[%emt 0:02:16]} 30. Bxa6 Ke7 {[%emt 0:02:27]} 31. Nc8+ {[%emt 0:00:54]} Kd7 {[%emt 0:04:57]} 32. Nb6+ {[%emt 0:00:16]} Kc7 {[%emt 0:00:44]} 33. a5 {[%emt 0:00:01]} Nc3 {[%emt 0:00:25]} 34. Bc4 {[%emt 0:01:03]} f6 {[%emt 0:00:33]} 35. Kf1 {[%emt 0:01:22]} Bb5 {[%emt 0:08:49]} 36. Bxb5 {[%emt 0:02:19]} Nxb5 {[%emt 0:00:01]} 37. Ke2 {[%emt 0:00:02]} Nd4+ {[%emt 0:11:57]} 38. Kd3 {[%emt 0:00:06]} Kc6 {[%emt 0:00:45]} 39. Kc4 {[%emt 0:00:39]} Nf5 {[%emt 0:00:45]} 40. Nc8 {[%emt 0:00:28]} Kc7 {[%emt 0:01:48]} 41. Nb6 {[%emt 0:00:08]} Kc6 {[%emt 0:00:10]} 42. Nc8 {[%emt 0:00:05]} Nh4 {[%emt 0:01:37]} 43. g3 {[%emt 0:00:24]} Nf3 {[%emt 0:00:03]} 44. Ne7+ {[%emt 0:00:13]} Kb7 {[%emt 0:00:57]} 45. Kb5 {[%emt 0:02:32]} Nd4+ {[%emt 0:01:24]} 46. Kxc5 {[%emt 0:00:13]} Ne6+ {[%emt 0:00:10]} 47. Kd6 {[%emt 0:00:41]} Ng5 {[%emt 0:00:02]} 48. f4 {[%emt 0:00:40]} Nf3 {[%emt 0:00:25]} 49. h4 {[%emt 0:00:17]} h5 {[%emt 0:00:49]} 50. Ke6 {[%emt 0:00:32]} g5 {[%emt 0:00:59]} 51. Nf5 {[%emt 0:00:12]} gxf4 {[%emt 0:00:48]} 52. gxf4 {[%emt 0:00:05]} Ng1 {[%emt 0:00:19]} 53. Kxf6 {[%emt 0:00:18]} Nh3 {[%emt 0:00:28]} 54. Ke5 {[%emt 0:00:04]} Ka6 {[%emt 0:00:08]} 55. Ng3 {[%emt 0:00:12]} Ng1 {[%emt 0:00:05]} 56. Ke4 {[%emt 0:00:24]} Kxa5 {[%emt 0:00:09]} 57. f5 {[%emt 0:00:09]} 1-0

[Event "40th Eastman Open Ghent"]
[Site "Ghent"]
[Date "2017.07.19"]
[Round "9"]
[White "Van der Valk, Niklas"]
[Black "Hamblok, Roel"]
[Result "1/2-1/2"]
[ECO "E11"]
[WhiteElo "2172"]
[BlackElo "2305"]
[Annotator "NA"]
[PlyCount "24"]
[EventDate "2017.??.??"]
[EventType "swiss"]
[EventCountry "BEL"]
[SourceTitle "playchess.com"]
[Source "ChessBase"]
[SourceQuality "1"]
[TimeControl "7200"]

{[%evp 9,22,16,32767,39,34,0,31,20,43,16,30,19,24,17,29]} 1. d4 {[%emt 0:21:26]} Nf6 {[%emt 0:00:11]} 2. c4 {[%emt 0:00:06]} e6 {[%emt 0:00:04]} 3. g3 {[%emt 0:00:19]} Bb4+ {[%emt 0:00:19]} 4. Bd2 {[%emt 0:00:16]} Qe7 {[%emt 0:00:06]} 5. Nf3 {[%emt 0:01:48]} Nc6 {[%emt 0:00:11]} 6. Nc3 {[%emt 0:00:35] LiveBook: 1551 Games} O-O {[%emt 0:00:36]} 7. d5 {[%emt 0:06:06]} Nb8 {[%emt 0:01:54]} 8. Bg2 {[%emt 0:03:25]} e5 {[%emt 0:02:01]} 9. e3 {[%emt 0:07:46]} d6 {[%emt 0:01:49]} 10. Qc2 {[%emt 0:02:08]} a5 {[%emt 0:18:25]} 11. O-O {[%emt 0:04:40]} Nbd7 $11 {[%emt 0:07:56]} 12. b3 {[%emt 0:07:15]} Nc5 {[%emt 0:01:24]} 1/2-1/2